bitfinex/quotes_ETHUSD_20250326
["timestamp","ask_amount","ask_price","bid_price","bid_amount"]
[1742976853717,0.12209248,2069.7,2069.4,5.96164189]
[1742976854069,7.83139,2069.8,2069.4,5.96164189]
[1742976854272,0.12527111,2069.6,2069.4,5.96164189]
[1742976854464,7.83139,2069.8,2069.4,5.96164189]
[1742976854670,0.12506091,2069.5,2069.4,5.96164189]
[1742976854992,0.12506091,2069.5,2069.4,7.24784844]
[1742976855296,3.0,2069.8,2069.4,7.24784844]
[1742976855470,0.12506091,2069.5,2069.4,5.96164189]
[1742976855670,3.0,2069.8,2069.4,5.96164189]
[1742976855883,0.12506091,2069.5,2069.4,4.83213]
[1742976856203,0.12506091,2069.5,2069.4,5.96164189]
[1742976856898,3.0,2069.8,2069.4,5.96164189]
[1742976857214,0.12506091,2069.5,2069.4,4.83213]
[1742976857412,0.12506091,2069.5,2069.4,6.00538536]
[1742976857906,3.0,2069.8,2069.4,6.00538536]
[1742976858111,0.12506091,2069.5,2069.4,4.83213]
[1742976858271,3.7508,2069.9,2069.5,4.83207]
[1742976858471,3.7508,2069.9,2069.6,1.12951189]
[1742976859317,8.58207,2069.9,2069.6,1.12951189]
[1742976860121,12.66262,2069.9,2069.6,1.12951189]
[1742976860315,7.83127,2069.9,2069.6,1.12951189]
[1742976861223,12.66263,2069.9,2069.6,1.12951189]
[1742976861515,7.83127,2069.9,2069.6,1.12951189]
[1742976861890,12.6626,2069.9,2069.6,1.12951189]
[1742976862321,4.83138,2069.8,2069.6,1.12951189]
[1742976862830,4.83138,2069.8,2069.5,1.88351189]
[1742976864418,12.66253,2069.9,2069.6,1.12951189]
[1742976864601,7.8312,2069.9,2069.6,1.12951189]
[1742976866353,12.66253,2069.9,2069.6,1.12951189]
[1742976866821,12.66248,2069.9,2069.6,1.12951189]
[1742976867150,7.8312,2069.9,2069.6,1.12951189]
[1742976867370,12.66253,2069.9,2069.6,1.12951189]
[1742976868251,4.83139,2069.8,2069.6,1.12951189]
[1742976870157,5.44406701,2069.8,2069.0,1.65736683]
[1742976870363,4.83234,2069.4,2069.1,1.12951189]
[1742976870726,8.62932,2069.5,2069.1,1.12951189]
[1742976871067,8.62932,2069.5,2069.2,1.12951189]
[1742976876476,8.62932,2069.5,2069.3,1.12951189]
[1742976876645,8.62932,2069.5,2069.2,1.12951189]
[1742976876848,7.83212,2069.5,2069.2,1.12951189]
[1742976877547,7.83212,2069.5,2069.3,1.12951189]
[1742976879248,7.83212,2069.5,2069.2,1.12951189]
[1742976879549,4.83233,2069.4,2069.2,1.12951189]
[1742976880653,7.83214,2069.5,2069.2,1.12951189]
[1742976881076,9.181249,2069.5,2069.2,1.12951189]
[1742976882270,4.83241,2069.4,2069.2,1.12951189]
[1742976882780,7.83214,2069.5,2069.2,1.12951189]
[1742976883276,12.66443,2069.5,2069.2,1.12951189]
[1742976883446,13.41633,2069.5,2069.2,1.12951189]
[1742976883647,4.83235,2069.4,2069.2,1.12951189]
[1742976885791,4.83235,2069.4,2069.1,1.12951189]
[1742976887299,9.66489,2069.4,2069.1,1.12951189]
[1742976887467,4.83258,2069.3,2069.0,1.90001189]
[1742976888202,4.83282,2069.2,2068.8,0.7689]
[1742976888355,4.83317,2069.1,2068.8,0.7689]
[1742976888556,4.83317,2069.1,2068.8,1.89841189]
[1742976888759,4.83317,2069.1,2068.8,1.12951189]
[1742976888989,4.83317,2069.1,2068.9,1.12951189]
[1742976890198,4.83281,2069.2,2068.9,1.12951189]
[1742976890406,5.63155,2069.3,2068.8,5.64573]
[1742976890700,4.8329,2069.2,2068.9,1.12951189]
[1742976892421,4.8329,2069.2,2068.8,6.77524189]
[1742976892599,5.879345,2069.2,2068.8,6.77524189]
[1742976893364,4.83305,2069.1,2068.8,1.94171189]
[1742976893559,9.66589,2069.2,2068.8,1.94171189]
[1742976895608,4.8329,2069.2,2068.8,1.94171189]
[1742976895904,4.83301,2069.1,2068.8,1.94171189]
[1742976897005,4.83301,2069.1,2068.9,1.12951189]
[1742976897883,4.83256,2069.3,2068.9,0.67755519]
[1742976898085,4.83256,2069.3,2069.1,1.12951189]
[1742976898705,3.0,2069.3,2069.1,1.12951189]
[1742976900414,4.83232,2069.4,2069.1,1.12951189]
[1742976900626,9.66485,2069.4,2069.1,1.12951189]
[1742976900924,9.66485,2069.4,2069.0,0.7939]
[1742976901106,9.66485,2069.4,2069.0,1.92341189]
[1742976901493,9.66484,2069.4,2069.0,3.08245408]
[1742976901922,4.83232,2069.4,2069.0,3.08245408]
[1742976902106,4.83232,2069.4,2069.0,7.91567408]
[1742976902431,4.83208,2069.5,2069.1,1.12951189]
[1742976902782,4.83208,2069.5,2069.0,7.91553408]
[1742976903000,4.83234,2069.4,2069.0,7.91553408]
[1742976903317,9.66478,2069.4,2069.1,1.27490141]
[1742976903519,9.66481,2069.4,2069.1,1.27490141]
[1742976903741,9.66481,2069.4,2069.0,0.7939]
[1742976904247,7.83232,2069.4,2069.0,6.75656189]
[1742976904640,4.83213,2069.5,2069.1,1.12951189]
[1742976905444,4.83213,2069.5,2069.0,6.75656189]
[1742976906249,4.83213,2069.5,2069.0,11.58968189]
[1742976906543,4.83213,2069.5,2069.1,1.12951189]
[1742976907247,4.83213,2069.5,2069.0,7.91550008]
[1742976908350,4.83213,2069.5,2069.1,1.12951189]
[1742976908526,7.83185,2069.6,2069.2,0.8154]
[1742976908845,4.83185,2069.6,2069.2,6.77768189]
[1742976909151,4.83185,2069.6,2069.2,8.0546319]
[1742976909611,0.8153,2069.7,2069.3,1.12951189]
[1742976909809,4.83167,2069.7,2069.3,1.12951189]
[1742976910225,4.83167,2069.7,2069.2,8.0545019]
[1742976910436,4.83167,2069.7,2069.4,0.8305]
[1742976910632,4.83143,2069.8,2069.4,0.8305]
[1742976910823,4.83143,2069.8,2069.4,3.25021908]
[1742976911024,4.83121,2069.9,2069.5,1.12951189]
[1742976911440,0.7252,2069.8,2069.5,1.12951189]
[1742976911625,0.7252,2069.8,2069.7,0.8242]
[1742976913847,0.7252,2069.8,2069.7,1.95371189]
[1742976914262,0.7252,2069.8,2069.7,0.8242]
[1742976914769,0.7252,2069.8,2069.7,1.95371189]
[1742976915063,0.7252,2069.8,2069.7,3.11547008]
[1742976915754,0.7252,2069.8,2069.7,1.98595819]
[1742976918662,0.85187287,2069.8,2069.7,1.98595819]
[1742976921062,0.85187287,2069.8,2069.7,7.94708008]
[1742976921257,0.85187287,2069.8,2069.7,1.98595819]
[1742976928866,0.85187287,2069.8,2069.7,6.81756819]
[1742976929360,0.85187287,2069.8,2069.7,7.94708008]
[1742976933855,0.84324731,2069.8,2069.7,7.94708008]
[1742976938882,0.84324731,2069.8,2069.7,6.81756819]
[1742976939083,0.84324731,2069.8,2069.7,7.94708008]
[1742976953885,0.7252,2069.8,2069.7,11.46698008]
[1742976954585,0.7252,2069.8,2069.7,12.59649197]
[1742976958393,0.7252,2069.8,2069.7,12.96769397]
[1742976958813,0.832,2070.8,2070.4,4.82975]
[1742976958959,0.832,2070.8,2070.4,5.95926189]
[1742976959290,0.10344238,2070.7,2070.4,5.95926189]
[1742976959588,0.10344238,2070.7,2070.6,5.95902189]
[1742976959790,0.832,2070.8,2070.6,5.95902189]
[1742976960013,0.1037459,2070.7,2070.6,5.95902189]
[1742976960379,0.832,2070.8,2070.6,5.95902189]
[1742976960692,0.832,2070.8,2070.6,4.82951]
[1742976960693,0.10438672,2070.7,2070.6,4.82951]
[1742976961197,0.832,2070.8,2070.7,4.82928]
[1742976961394,0.8119,2071.0,2070.6,5.95897189]
[1742976961596,0.8119,2071.0,2070.7,4.82925]
[1742976961964,0.8119,2071.0,2070.8,10.78739189]
[1742976962194,0.8119,2071.0,2070.8,5.95838189]
[1742976962395,0.8119,2071.0,2070.8,10.78734189]
[1742976962595,0.8206,2071.2,2070.9,5.95809189]
[1742976962795,0.8206,2071.2,2070.8,5.95851189]
[1742976962977,0.8206,2071.2,2070.8,5.95839189]
[1742976963178,0.8206,2071.2,2070.9,4.8288]
[1742976963996,0.8206,2071.2,2071.0,4.82856]
[1742976965399,0.8206,2071.2,2071.0,5.95807189]
[1742976965594,5.65802,2071.5,2071.0,5.95787189]
[1742976965798,8.24900408,2071.5,2071.0,4.82836]
[1742976966169,8.24900408,2071.5,2071.0,5.95787189]
[1742976966898,8.24900408,2071.5,2071.0,10.78627189]
[1742976967102,5.65802,2071.5,2071.0,5.95787189]
[1742976967598,5.65802,2071.5,2071.1,4.82834]
[1742976967798,5.65802,2071.5,2071.0,5.95803189]
[1742976967972,6.78753189,2071.5,2071.0,5.95803189]
[1742976968501,5.65802,2071.5,2071.0,5.95803189]
[1742976968806,5.65802,2071.5,2071.0,7.21538148]
[1742976969207,5.65802,2071.5,2071.0,7.21531148]
[1742976969520,5.65802,2071.5,2071.0,12.04379148]
[1742976969675,5.65802,2071.5,2071.0,7.21531148]
[1742976969874,4.82765,2071.4,2071.0,7.21531148]
[1742976970068,1.96011189,2071.5,2071.1,4.82816]
[1742976970370,13.4857,2071.5,2071.0,7.21531148]
[1742976970722,8.65808,2071.5,2071.0,7.21531148]
[1742976971006,9.78759189,2071.5,2071.0,7.21531148]
[1742976971204,9.78759189,2071.5,2071.0,6.08579959]
[1742976971422,4.82766,2071.4,2071.0,6.08579959]
[1742976972725,9.78759189,2071.5,2071.0,6.08579959]
[1742976973224,14.61516189,2071.5,2071.0,6.08579959]
[1742976974221,4.82766,2071.4,2071.0,6.08579959]
[1742976974419,4.96011189,2071.5,2071.0,6.08579959]
[1742976974611,8.65808,2071.5,2071.1,4.82817]
[1742976975031,3.8306,2071.5,2071.1,4.82817]
[1742976975211,3.8306,2071.5,2071.1,5.95768189]
[1742976975614,8.65805,2071.5,2071.1,5.95768189]
[1742976976816,3.8306,2071.5,2071.1,5.95768189]
[1742976977020,0.8306,2071.5,2071.1,7.29138703]
[1742976977220,0.8306,2071.5,2071.2,4.82811]
[1742976980011,4.8269,2071.8,2071.4,5.95714189]
[1742976980207,5.6182,2071.9,2071.4,7.11777308]
[1742976980407,10.44488,2071.9,2071.4,7.11777308]
[1742976980636,11.57439189,2071.9,2071.4,7.11777308]
[1742976980838,4.82674,2071.8,2071.4,5.98826119]
[1742976982450,5.95625189,2071.8,2071.4,5.98826119]
[1742976983252,4.82705,2071.7,2071.4,1.16080119]
[1742976983449,5.95625189,2071.8,2071.4,1.16080119]
[1742976984017,5.95625189,2071.8,2071.4,5.98843119]
[1742976986308,5.95625189,2071.8,2071.1,20.32942815]
[1742976986309,4.82766,2071.4,2071.1,0.7849]
[1742976986514,6.76267189,2071.4,2071.0,4.82852]
[1742976986745,0.8055,2071.4,2071.0,4.82839]
[1742976987048,0.8055,2071.4,2071.1,5.50726019]
[1742976988042,4.82748,2071.5,2071.1,5.50726019]
[1742976988243,5.63272,2071.6,2071.2,6.78974189]
[1742976988618,5.63272,2071.6,2071.2,5.66017]
[1742976988949,5.63272,2071.6,2071.2,6.78968189]
[1742976989145,5.63272,2071.6,2071.2,5.70844658]
[1742976989350,6.73763189,2071.8,2071.3,4.82779]
[1742976989648,4.82696,2071.7,2071.3,4.82779]
[1742976992366,0.7814,2071.8,2071.4,4.8275]
[1742976992645,5.58076,2072.0,2071.5,5.58112]
[1742976992816,10.40721,2072.0,2071.5,5.58112]
[1742976993417,5.58076,2072.0,2071.5,11.65058086]
[1742976993724,5.58076,2072.0,2071.6,4.82715]
[1742976994456,4.82613,2072.1,2071.6,4.82718]
[1742976994628,4.82627,2072.0,2071.6,4.82718]
[1742976995347,6.83955856,2072.0,2071.5,6.82328086]
[1742976995525,4.82681,2071.8,2071.3,1.74982454]
[1742976995856,5.60605,2071.7,2071.3,5.79318454]
[1742976996253,0.7791,2071.7,2071.3,10.62092454]
[1742976996424,0.7791,2071.7,2071.3,9.65549]
[1742976996745,0.7791,2071.7,2071.3,4.82772]
[1742976996918,0.7791,2071.7,2071.4,0.60574242]
[1742976997320,0.7791,2071.7,2071.4,5.43337242]
[1742976998456,5.65618,2071.9,2071.4,6.19017242]
[1742976998753,3.8297,2071.9,2071.6,4.82718]
[1742976998953,5.65576,2072.1,2071.6,4.82718]
[1742976999126,5.65576,2072.1,2071.6,5.9771507]
[1742976999331,5.65576,2072.1,2071.7,0.7568]
[1742976999956,4.8263,2072.0,2071.7,0.7568]
[1742977000549,9.65271,2072.0,2071.7,0.7568]
[1742977000755,9.65271,2072.0,2071.5,5.5919]
[1742977001057,4.8265,2071.9,2071.5,7.90880075]
[1742977002624,4.8265,2071.9,2071.5,5.5919]
[1742977004464,4.8263,2072.0,2071.5,5.59183]
[1742977005561,9.65276,2072.0,2071.5,5.59183]
[1742977006150,4.82649,2071.9,2071.5,5.59183]
[1742977007829,4.82677,2071.8,2071.5,0.7646]
[1742977008156,10.46148,2071.8,2071.4,5.43338242]
[1742977008361,4.82698,2071.7,2071.4,0.60574242]
[1742977008660,5.63457,2071.8,2071.4,5.43339242]
[1742977009751,10.46149,2071.8,2071.4,5.43339242]
[1742977010360,4.82741,2071.6,2071.3,0.797]
[1742977011961,7.64780856,2071.8,2071.1,20.08375]
[1742977012147,4.82765,2071.4,2071.1,0.7554]
[1742977012349,2.01328856,2071.3,2070.9,0.7554]
[1742977012531,4.82825,2071.2,2070.9,1.313849]
[1742977013863,4.82825,2071.2,2070.8,4.82889]
[1742977015171,11.66917856,2071.3,2070.8,4.82886]
[1742977015336,4.8279,2071.3,2071.0,0.7692]
[1742977015868,4.82766,2071.4,2071.0,0.7692]
[1742977016034,4.82766,2071.4,2071.0,5.59776]
[1742977016235,4.8279,2071.3,2071.0,0.7692]
[1742977018675,9.65598,2071.3,2071.0,0.7692]
[1742977019045,9.65598,2071.3,2070.9,4.82875]
[1742977019666,4.8279,2071.3,2070.9,4.82875]
[1742977020071,4.82815,2071.2,2070.8,20.14714]
[1742977020264,4.82815,2071.2,2070.8,22.644781]
[1742977020637,4.8286,2071.0,2070.6,5.64755]
[1742977021550,0.09379219,2070.9,2070.6,5.64755]
[1742977022140,0.09379219,2070.9,2070.6,5.64744]
[1742977022440,0.09379219,2070.9,2070.7,4.82928]
[1742977022640,4.82856,2071.1,2070.7,4.82928]
[1742977022841,0.09355227,2070.8,2070.7,4.82928]
[1742977023042,9.65711,2071.1,2070.7,5.876952]
[1742977023242,0.09355227,2070.8,2070.7,4.82928]
[1742977023459,4.82855,2071.1,2070.7,4.82928]
[1742977023659,0.09355227,2070.8,2070.6,0.8181]
[1742977023868,4.82866,2071.0,2070.6,5.64761]
[1742977024069,0.09403181,2070.7,2070.6,5.64761]
[1742977024279,4.82866,2071.0,2070.6,6.695354]
[1742977024771,0.09445164,2070.9,2070.6,6.695354]
[1742977031586,0.09445164,2070.9,2070.6,6.695244]
[1742977032594,4.92338164,2070.9,2070.5,4.82969]
[1742977032956,4.82905,2070.8,2070.5,4.82969]
[1742977033144,4.82928,2070.7,2070.4,0.7999]
[1742977033480,4.92250236,2070.6,2070.2,0.7999]
[1742977033778,4.83002,2070.4,2070.0,5.64391]
[1742977033978,4.83002,2070.4,2070.1,1.047491]
[1742977034183,0.0914094,2070.3,2070.1,1.047491]
[1742977034665,0.0914094,2070.3,2070.0,0.8131]
[1742977034869,4.83021,2070.3,2070.0,0.8131]
[1742977035122,0.09119935,2070.2,2069.8,5.59461]
[1742977035386,4.8305,2070.2,2069.8,5.59461]
[1742977035881,4.8305,2070.2,2069.8,7.97955986]
[1742977036269,4.87857612,2070.3,2069.8,7.97955986]
[1742977036780,4.87857612,2070.3,2069.8,7.97942986]
[1742977036961,4.87857612,2070.3,2069.8,12.81063986]
[1742977037279,4.83028,2070.3,2069.9,4.83104]
[1742977037478,4.83028,2070.3,2069.9,5.83513752]
[1742977037981,4.83028,2070.3,2069.9,1.00409752]
[1742977038361,4.83028,2070.3,2069.8,4.83118]
[1742977038870,9.66069,2070.3,2069.8,4.83118]
[1742977039060,4.83028,2070.3,2069.8,4.83118]
[1742977039373,4.83028,2070.3,2069.9,4.83105]
[1742977042483,9.70897612,2070.3,2069.8,4.83131]
[1742977042782,4.83048,2070.2,2069.8,4.83131]
[1742977042987,4.83048,2070.2,2069.8,7.97955986]
[1742977043484,4.87857612,2070.3,2069.8,27.31073986]
[1742977044053,4.87857612,2070.3,2069.9,4.83114]
[1742977044355,4.83047,2070.2,2069.8,22.47942986]
[1742977044794,4.83047,2070.2,2069.8,4.83134]
[1742977045686,4.83047,2070.2,2069.7,10.42628]
[1742977046184,4.83047,2070.2,2069.8,4.83136]
[1742977047066,4.83047,2070.2,2069.8,9.66257]
[1742977047566,3.0,2070.2,2069.9,4.83114]
[1742977048785,4.83026,2070.3,2069.9,4.83114]
[1742977049484,5.58219,2070.4,2069.9,5.873505]
[1742977049682,5.58219,2070.4,2070.0,0.7809]
[1742977050082,5.58219,2070.4,2070.0,5.61179]
[1742977050788,5.58219,2070.4,2070.0,0.7809]
[1742977051088,4.83021,2070.3,2070.0,0.7809]
[1742977052589,4.83021,2070.3,2069.9,4.83108]
[1742977052788,4.8305,2070.2,2069.8,5.61146]
[1742977053291,4.87879612,2070.2,2069.8,5.61146]
[1742977053676,0.04829612,2070.2,2069.8,5.61146]
[1742977054763,4.87888612,2070.2,2069.7,4.83151]
[1742977054963,4.87888612,2070.2,2069.7,5.59911]
[1742977055159,0.04829612,2070.2,2069.8,4.83138]
[1742977055878,4.87887612,2070.2,2069.7,6.70946852]
[1742977056080,4.87887612,2070.2,2069.5,6.5897952]
[1742977056081,4.83117,2069.9,2069.5,6.5897952]
[1742977056392,4.87968612,2069.8,2069.4,4.8322]
[1742977056571,4.83139,2069.8,2069.4,4.8322]
[1742977056773,4.83195,2069.6,2069.1,5.65573]
[1742977056970,10.4149,2069.5,2069.1,0.8229]
[1742977057166,4.83234,2069.4,2069.0,4.83319]
[1742977057370,4.83234,2069.4,2068.9,5.65634]
[1742977057589,4.83234,2069.4,2068.9,10.48964]
[1742977057786,4.83234,2069.4,2069.0,4.83322]
[1742977058202,10.41494,2069.5,2069.0,9.66626]
[1742977058502,10.41488,2069.5,2069.0,4.83304]
[1742977058699,5.58267,2069.5,2069.0,4.83304]
[1742977058907,4.83241,2069.4,2068.9,7.36102286]
[1742977059070,4.83241,2069.4,2069.0,4.83322]
[1742977059683,5.58267,2069.5,2069.0,4.83322]
[1742977060004,6.42752627,2069.5,2069.1,4.83301]
[1742977060190,1.59535627,2069.5,2069.2,4.83276]
[1742977060400,1.59535627,2069.5,2069.1,4.83284]
[1742977060593,0.7505,2069.5,2069.1,4.83284]
[1742977060800,0.7505,2069.5,2069.1,9.66574]
[1742977060987,0.7505,2069.5,2069.1,4.83284]
[1742977061391,5.5826,2069.5,2069.1,4.83284]
[1742977062015,0.7505,2069.5,2069.1,9.66571]
[1742977062181,0.7505,2069.5,2069.1,9.66575]
[1742977062381,0.7505,2069.5,2069.1,4.83284]
[1742977062577,7.32803756,2069.7,2069.2,4.83277]
[1742977062787,6.134549,2069.7,2069.2,5.59687]
[1742977063115,6.134549,2069.7,2069.2,10.42933]
[1742977063414,6.134549,2069.7,2069.2,5.5967]
[1742977063794,10.966379,2069.7,2069.2,5.5967]
[1742977064483,4.83187,2069.6,2069.2,5.5967]
[1742977066316,4.83187,2069.6,2069.2,0.7641]
[1742977066515,5.96430603,2069.6,2069.2,0.7641]
[1742977067416,5.96430603,2069.6,2069.1,4.83287]
[1742977067607,6.84550856,2069.5,2069.0,5.6245]
[1742977067803,0.7615,2069.4,2069.0,5.6245]
[1742977068234,0.7615,2069.4,2069.1,4.83291]
[1742977068950,0.7615,2069.4,2069.0,10.45744]
[1742977069239,0.7615,2069.4,2069.0,10.45746]
[1742977069390,0.7615,2069.4,2069.1,4.83299]
[1742977073852,0.7615,2069.4,2069.0,0.7913]
[1742977073853,5.59382,2069.4,2069.0,5.62451]
[1742977074481,0.7615,2069.4,2069.0,10.45758]
[1742977074691,5.59385,2069.4,2069.1,4.83301]
[1742977075079,0.7615,2069.4,2069.1,4.83301]
[1742977075587,0.7615,2069.4,2069.1,5.878608]
[1742977077180,5.59383,2069.4,2069.1,1.045738]
[1742977077382,0.8105,2069.2,2068.6,8.07339803]
[1742977077590,11.72784468,2069.1,2068.6,12.90740803]
[1742977077796,4.83328,2069.0,2068.6,8.07330803]
[1742977078095,4.83328,2069.0,2068.6,9.36507668]
[1742977078253,4.83325,2069.0,2068.7,4.83394]
[1742977078596,4.83325,2069.0,2068.6,9.36523668]
[1742977078894,0.8105,2069.2,2068.6,4.53106668]
[1742977079060,0.8105,2069.2,2068.6,3.23929803]
[1742977079584,0.8105,2069.2,2068.8,4.83349]
[1742977079788,0.8105,2069.2,2068.9,4.83336]
[1742977079965,0.7544,2069.4,2069.1,4.83298]
[1742977080882,0.7544,2069.4,2069.0,4.83311]
[1742977081191,0.7544,2069.4,2069.0,5.881719]
[1742977081397,5.58686,2069.4,2068.9,4.83347]
[1742977081900,4.83268,2069.3,2068.9,4.83347]
[1742977082794,6.84594856,2069.3,2068.8,4.83355]
[1742977082999,7.60454856,2069.3,2068.8,9.66716]
[1742977083198,4.83279,2069.2,2068.8,4.83355]
[1742977084387,4.83279,2069.2,2068.8,4.83353]
[1742977084596,7.60447856,2069.3,2068.9,4.83348]
[1742977084890,0.7586,2069.3,2068.7,5.61432]
[1742977085188,0.8214,2069.0,2068.7,9.66776]
[1742977085393,0.8214,2069.0,2068.7,4.83384]
[1742977085570,0.8214,2069.0,2068.6,8.28347629]
[1742977085765,5.65476,2069.0,2068.6,8.28347629]
[1742977085961,0.8214,2069.0,2068.7,4.83393]
[1742977086161,0.8214,2069.0,2068.8,4.83358]
[1742977086751,0.8214,2069.0,2068.7,9.66776]
[1742977087064,7.65857856,2069.2,2068.7,9.66776]
[1742977087259,4.83301,2069.1,2068.7,9.66768]
[1742977087483,9.36218942,2069.2,2068.7,9.66768]
[1742977087885,0.8124,2069.2,2068.9,4.83339]
[1742977091916,7.65859856,2069.2,2068.8,0.7982]
[1742977092074,0.7965,2069.0,2068.6,8.28765152]
[1742977092589,0.7965,2069.0,2068.8,4.8337]
[1742977092801,7.61932856,2069.2,2068.8,4.8337]
[1742977093495,0.7732,2069.2,2068.8,4.83355]
[1742977094239,0.7732,2069.2,2068.9,4.83347]
[1742977095123,0.7732,2069.2,2068.8,10.42781]
[1742977095661,0.7732,2069.2,2068.8,5.59425]
[1742977095961,0.7732,2069.2,2068.8,10.42779]
[1742977098056,0.7732,2069.2,2068.8,5.59424]
[1742977098768,4.83302,2069.1,2068.7,4.83394]
[1742977099082,0.04829612,2069.1,2068.7,4.83394]
[1742977099210,4.88133612,2069.1,2068.7,4.83394]
[1742977099412,0.04829612,2069.1,2068.7,4.83394]
[1742977099617,9.36735454,2069.2,2068.7,4.83394]
[1742977100372,9.31905842,2069.2,2068.7,4.83386]
[1742977100669,9.36735454,2069.2,2068.7,4.83382]
[1742977100839,2.01328856,2068.8,2068.6,3.45361152]
[1742977101047,11.67997856,2069.0,2068.6,0.97011349]
[1742977101347,4.88182612,2068.9,2068.5,5.65952]
[1742977101670,0.8059,2068.7,2068.4,0.00997848]
[1742977102169,5.63986,2068.7,2068.4,0.00997848]
[1742977104102,0.8059,2068.7,2068.4,0.00997848]
[1742977104448,0.8059,2068.7,2068.4,4.84452848]
[1742977106188,0.8059,2068.7,2068.4,0.00997848]
[1742977106365,7.53107304,2068.7,2068.4,0.00997848]
[1742977106963,9.5443616,2068.7,2068.4,0.00997848]
[1742977107279,4.83421,2068.6,2068.4,0.00997848]
[1742977107661,4.88250612,2068.6,2068.4,0.00997848]
[1742977108120,0.04829612,2068.6,2068.4,0.00997848]
[1742977108292,1.48614928,2068.6,2068.4,0.00997848]
[1742977108474,6.32034928,2068.6,2068.4,0.00997848]
[1742977108676,1.48614928,2068.6,2068.4,0.00997848]
[1742977108876,1.43785316,2068.6,2068.4,0.00997848]
[1742977110190,5.63988,2068.7,2068.4,0.00997848]
[1742977110593,0.8059,2068.7,2068.4,0.00997848]
[1742977110791,7.83393,2068.8,2068.4,0.00997848]
[1742977110792,3.0,2068.8,2068.4,9.67907848]
[1742977110988,7.83373,2068.8,2068.4,4.84452848]
[1742977111209,7.88202612,2068.8,2068.4,4.84452848]
[1742977111401,8.63402456,2068.8,2068.4,4.84452848]
[1742977111835,8.58572844,2068.8,2068.4,4.84452848]
[1742977113035,3.75199844,2068.8,2068.4,4.84452848]
[1742977113239,8.58576844,2068.8,2068.4,4.84452848]
[1742977114326,8.58576844,2068.8,2068.4,0.00997848]
[1742977114530,2.21329677,2068.7,2068.4,0.00997848]
[1742977115001,8.58576844,2068.8,2068.4,0.00997848]
[1742977115390,4.88227612,2068.7,2068.4,0.00997848]
[1742977115617,5.70937612,2068.7,2068.4,0.00997848]
[1742977116829,4.83424,2068.6,2068.4,0.00997848]
[1742977116996,9.66863,2068.6,2068.4,0.00997848]
[1742977117198,1.25090186,2068.5,2068.4,0.00997848]
[1742977118434,7.67433856,2068.7,2068.4,0.00997848]
[1742977118613,5.66105,2068.7,2068.4,0.00997848]
[1742977118801,8.58571844,2068.8,2068.4,0.00997848]
[1742977120899,13.41963844,2068.8,2068.4,0.00997848]
[1742977121100,13.41963844,2068.8,2068.4,4.84457848]
[1742977121101,0.75199844,2068.8,2068.4,4.84457848]
[1742977121306,5.64118,2068.9,2068.4,4.84457848]
[1742977121635,4.83374,2068.8,2068.4,4.84457848]
[1742977122002,4.83374,2068.8,2068.4,0.00997848]
[1742977122207,4.83402,2068.7,2068.4,0.00997848]
[1742977126626,9.66811,2068.7,2068.4,0.00997848]
[1742977126853,4.83402,2068.7,2068.4,0.00997848]
[1742977128551,6.08288386,2068.7,2068.4,0.00997848]
[1742977129169,6.08288386,2068.7,2068.3,5.60767]
[1742977130339,1.24886386,2068.7,2068.4,4.83453]
[1742977130535,4.83373,2068.8,2068.4,4.83453]
[1742977130737,8.64112,2068.9,2068.4,4.83443]
[1742977131138,4.83373,2068.8,2068.4,4.83443]
[1742977131652,8.64112,2068.9,2068.5,4.83432]
[1742977131943,9.83688486,2068.9,2068.6,0.7893]
[1742977133266,4.83372,2068.8,2068.6,0.7893]
[1742977133780,9.83688486,2068.9,2068.6,0.7893]
[1742977136678,5.00336486,2068.9,2068.6,0.7893]
[1742977137262,7.83349,2068.9,2068.6,0.7893]
[1742977139342,7.8333,2069.0,2068.6,0.7893]
[1742977140646,4.83394,2068.8,2068.6,0.7893]
[1742977140868,4.83395,2068.7,2068.3,0.7861]
[1742977141543,10.43393,2068.8,2068.3,5.62095]
[1742977141978,4.83378,2068.8,2068.3,5.62087]
[1742977142180,4.83378,2068.8,2068.4,4.83462]
[1742977142682,4.83378,2068.8,2068.3,5.62093]
[1742977143583,4.83378,2068.8,2068.3,10.45569]
[1742977143879,4.83378,2068.8,2068.3,5.62086]
[1742977144281,4.83378,2068.8,2068.3,5.6208]
[1742977145178,6.84677856,2068.9,2068.4,4.83464]
[1742977145393,4.83349,2068.9,2068.4,4.83464]
[1742977145563,7.83332,2069.0,2068.5,5.59018]
[1742977145879,3.0,2069.0,2068.5,0.7559]
[1742977146183,0.7732,2069.2,2068.7,0.8211]
[1742977146184,5.60602,2069.2,2068.7,0.8211]
[1742977146484,6.04954086,2069.1,2068.7,0.8211]
[1742977148462,5.60602,2069.2,2068.7,0.8211]
[1742977148662,5.60602,2069.2,2068.7,5.65499]
[1742977149889,4.83302,2069.1,2068.7,5.65499]
[1742977150795,8.60605,2069.2,2068.7,5.65493]
[1742977152102,4.83316,2069.1,2068.7,0.8211]
[1742977152305,4.88145612,2069.1,2068.7,0.8211]
[1742977152483,11.72796468,2069.1,2068.7,0.8211]
[1742977152688,11.67966856,2069.1,2068.7,0.8211]
[1742977152885,0.04829612,2069.0,2068.7,0.8211]
[1742977156888,4.88156612,2069.0,2068.7,0.8211]
[1742977158999,4.87158764,2069.0,2068.7,0.8211]
[1742977159802,0.03831764,2069.0,2068.7,0.8211]
[1742977159981,4.83305,2069.1,2068.7,0.8211]
[1742977160175,4.83305,2069.1,2068.7,6.80098004]
[1742977160499,13.43897,2069.2,2068.7,6.80098004]
[1742977161005,4.83303,2069.1,2068.7,6.80098004]
[1742977161211,4.83303,2069.1,2068.7,1.96706004]
[1742977161712,4.83303,2069.1,2068.7,0.8211]
[1742977162338,4.87134764,2069.1,2068.7,0.8211]
[1742977162929,9.70451764,2069.1,2068.7,0.8211]
[1742977163104,4.83334,2069.0,2068.7,0.8211]
[1742977165239,4.83403,2068.7,2068.5,0.8144]
[1742977167296,4.83403,2068.7,2068.3,5.60358]
[1742977167498,4.83403,2068.7,2068.3,8.19927706]